fUSD/lending_fUSD_20251102
["ID","MTS","AMOUNT","RATE_DAILY","PERIOD"]
[392873462,1762099832395,-150.0,0.0001422,2]
[392873465,1762099832404,-150.0,0.00014237,2]
[392873468,1762099832413,-150.0,0.00014237,2]
[392873470,1762099832422,-150.0,0.00014237,2]
[392873472,1762099832433,-150.0,0.00014237,2]
[392873474,1762099832442,-150.0,0.00014237,2]
[392873476,1762099832451,-150.0,0.00014237,2]
[392873478,1762099832461,-150.0,0.00014237,2]
[392873479,1762099832472,-150.0,0.00014237,2]
[392873480,1762099832481,-150.0,0.00014254,2]
[392873481,1762099832491,-698.24349381,0.00014262,2]
[392873482,1762099832501,-150.0,0.00014265,2]
[392873483,1762099832511,-150.0,0.00014267,2]
[392873484,1762099832520,-150.0,0.00014276,2]
[392873485,1762099832530,-150.0,0.00014276,2]
[392873486,1762099832539,-150.0,0.00014287,2]
[392873487,1762099832549,-150.0,0.00014291,2]
[392873488,1762099832559,-150.0,0.00014295,2]
[392873489,1762099832568,-150.0,0.00014297,2]
[392873490,1762099832580,-150.0,0.0001432,2]
[392873491,1762099832589,-150.0,0.0001432,2]
[392873492,1762099832599,-150.0,0.0001432,2]
[392873493,1762099832610,-150.0,0.00014327,2]
[392873494,1762099832619,-150.0,0.00014344,2]
[392873495,1762099832628,-150.0,0.00014352,2]
[392873496,1762099832638,-150.0,0.00014354,2]
[392873497,1762099832647,-150.0,0.00014355,2]
[392873498,1762099832656,-150.0,0.00014355,2]
[392873499,1762099832666,-150.0,0.00014357,2]
[392873500,1762099832675,-150.0,0.00014376,2]
[392873501,1762099832684,-150.0,0.00014387,2]
[392873502,1762099832693,-150.0,0.00014387,2]
[392873503,1762099832703,-150.0,0.00014387,2]
[392873504,1762099832712,-150.0,0.00014387,2]
[392873505,1762099832721,-150.0,0.00014398,2]
[392873506,1762099832731,-150.0,0.0001441,2]
[392873507,1762099832740,-150.0,0.00014417,2]
[392873508,1762099832749,-150.0,0.0001442,2]
[392873509,1762099832759,-150.0,0.00014431,2]
[392873510,1762099832768,-150.0,0.00014434,2]
[392873511,1762099832778,-150.0,0.00014434,2]
[392873512,1762099832787,-565.89345249,0.00014443,2]
[392873513,1762099832796,-565.89345248,0.00014443,2]
[392873514,1762099832805,-150.0,0.00014447,2]
[392873515,1762099832814,-150.0,0.00014451,2]
[392873516,1762099832824,-150.0,0.00014453,2]
[392873517,1762099832833,-150.0,0.00014468,2]
[392873518,1762099832843,-150.0,0.00014477,2]
[392873519,1762099832852,-150.0,0.00014487,2]
[392873520,1762099832861,-150.0,0.00014487,2]
[392873521,1762099832870,-150.0,0.00014487,2]
[392873522,1762099832880,-150.0,0.00014487,2]
[392873523,1762099832890,-442.40335232,0.000145,2]
[392873524,1762099832900,-467.74,0.000145,2]
[392873525,1762099832909,-150.0,0.000145,2]
[392873526,1762099832919,-1204.11,0.000145,2]
[392873527,1762099832929,-1093.33,0.000145,2]
[392873528,1762099832938,-150.0,0.000145,2]
[392873529,1762099832948,-168.88,0.000145,2]
[392873530,1762099832957,-476.65,0.000145,2]
[392873531,1762099832967,-300.0,0.000145,2]
[392873532,1762099832976,-697.96,0.000145,2]
[392873533,1762099832986,-415.37,0.000145,2]
[392873534,1762099832995,-1097.48,0.000145,2]
[392873535,1762099833006,-168.88,0.000145,2]
[392873536,1762099833017,-415.37,0.000145,2]
[392873537,1762099833027,-697.96,0.000145,2]
[392873538,1762099833036,-1204.11,0.000145,2]
[392873539,1762099833046,-353.4,0.000145,2]
[392873540,1762099833055,-150.68,0.000145,2]
[392873541,1762099833065,-1095.84,0.000145,2]
[392873542,1762099833079,-184.38,0.000145,2]
[392873543,1762099833088,-168.88,0.000145,2]
[392873544,1762099833097,-300.0,0.000145,2]
[392873545,1762099833107,-413.32,0.000145,2]
[392873546,1762099833116,-150.0,0.000145,2]
[392873547,1762099833126,-150.0,0.000145,2]
[392873548,1762099833135,-1366.43,0.000145,2]
[392873549,1762099833145,-476.65,0.000145,2]
[392873550,1762099833157,-775.33215736,0.000145,2]
[392873551,1762099833168,-191.96664317,0.000145,2]
[392873552,1762099833177,-1073.25,0.000145,2]
[392873553,1762099833187,-150.0,0.00014505,2]
[392873554,1762099833196,-150.0,0.00014507,2]
[392873555,1762099833205,-150.0,0.00014513,2]
[392873556,1762099833215,-150.0,0.00014513,2]
[392873557,1762099833225,-150.0,0.0001452,2]
[392873558,1762099833235,-150.0,0.00014525,2]
[392873559,1762099833244,-150.0,0.00014537,2]
[392873560,1762099833256,-150.0,0.00014537,2]
[392873561,1762099833265,-150.0,0.00014542,2]
[392873562,1762099833275,-893.21759391,0.00014545,2]
[392873563,1762099833285,-221.66766337,0.00014547,2]
[392873564,1762099833293,-150.0,0.00014553,2]
[392873565,1762099833302,-150.0,0.00014558,2]
[392873566,1762099833312,-1031.0,0.00014567,2]
[392873567,1762099833321,-150.0,0.00014567,2]
[392873568,1762099833330,-150.0,0.00014583,2]
[392873569,1762099833339,-150.0,0.00014587,2]
[392873570,1762099833354,-150.0,0.00014592,2]
[392873571,1762099833363,-150.0,0.00014592,2]
[392873572,1762099833372,-150.0,0.00014597,2]
[392873573,1762099833382,-150.0,0.00014598,2]
[392873574,1762099833391,-548.74,0.000146,2]
[392873575,1762099833401,-1394.24,0.000146,2]
[392873576,1762099833410,-548.74,0.000146,2]
[392873577,1762099833419,-1362.64,0.000146,2]
[392873578,1762099833429,-150.0,0.000146,2]
[392873579,1762099833438,-916.25,0.000146,2]
[392873580,1762099833448,-787.92,0.000146,2]
[392873581,1762099833457,-150.0,0.000146,2]
[392873582,1762099833466,-353.48,0.000146,2]
[392873583,1762099833476,-548.74,0.000146,2]
[392873584,1762099833485,-1204.11,0.000146,2]
[392873585,1762099833493,-301.06,0.000146,2]
[392873586,1762099833503,-150.03,0.000146,2]
[392873587,1762099833512,-697.96,0.000146,2]
[392873588,1762099833521,-830.58,0.000146,2]
[392873589,1762099833531,-300.0,0.000146,2]
[392873590,1762099833540,-168.88,0.000146,2]
[392873591,1762099833549,-150.88,0.000146,2]
[392873592,1762099833558,-485.32,0.000146,2]
[392873593,1762099833567,-150.0,0.000146,2]
[392873594,1762099833577,-698.24349381,0.000146,2]
[392873595,1762099833586,-548.74,0.000146,2]
[392873596,1762099833595,-168.88,0.000146,2]
[392873597,1762099833605,-548.74,0.000146,2]
[392873598,1762099833614,-1204.11,0.000146,2]
[392873599,1762099833624,-150.0,0.000146,2]
[392873600,1762099833633,-150.0,0.000146,2]
[392873601,1762099833642,-469.32,0.000146,2]
[392873602,1762099833651,-476.65,0.000146,2]
[392873603,1762099833661,-300.0,0.000146,2]
[392873604,1762099833670,-415.29,0.000146,2]
[392873605,1762099833680,-150.0,0.000146,2]
[392873606,1762099833689,-697.96,0.000146,2]
[392873607,1762099833699,-167.3,0.000146,2]
[392873608,1762099833708,-159.02,0.000146,2]
[392873609,1762099833717,-150.0,0.000146,2]
[392873610,1762099833727,-1122.41,0.000146,2]
[392873611,1762099833736,-548.74,0.000146,2]
[392873612,1762099833746,-176.77,0.000146,2]
[392873613,1762099833756,-1204.11,0.000146,2]
[392873614,1762099833765,-168.88,0.000146,2]
[392873615,1762099833774,-300.0,0.000146,2]
[392873616,1762099833784,-476.65,0.000146,2]
[392873617,1762099833793,-415.29,0.000146,2]
[392873618,1762099833803,-150.0,0.000146,2]
[392873619,1762099834071,-697.96,0.000146,2]
[392873620,1762099834084,-1000.0,0.000146,2]
[392873621,1762099834094,-1097.48,0.000146,2]
[392873622,1762099834103,-337.71,0.000146,2]
[392873623,1762099834112,-544.84,0.000146,2]
[392873624,1762099834121,-500.95,0.000146,2]
[392873625,1762099834130,-168.88,0.000146,2]
[392873626,1762099834139,-150.0,0.000146,2]
[392873627,1762099834149,-150.0,0.000146,2]
[392873628,1762099834158,-710.78,0.000146,2]
[392873629,1762099834167,-302.1417572,0.000146,2]
[392873630,1762099834182,-395.8182428,0.000146,2]
[392873631,1762099834191,-150.0,0.00014612,2]
[392873632,1762099834200,-150.0,0.00014612,2]
[392873633,1762099834210,-150.0,0.0001462,2]
[392873634,1762099834219,-150.0,0.00014627,2]
[392873635,1762099834228,-150.0,0.0001464,2]
[392873636,1762099834237,-150.0,0.00014653,2]
[392873637,1762099834247,-150.0,0.00014653,2]
[392873638,1762099834257,-150.0,0.00014653,2]
[392873639,1762099834267,-1031.0,0.00014654,2]
[392873640,1762099834276,-150.0,0.00014657,2]
[392873641,1762099834285,-1031.0,0.00014663,2]
[392873642,1762099834295,-150.0,0.00014665,2]
[392873643,1762099834304,-150.0,0.00014671,2]
[392873644,1762099834313,-150.0,0.00014671,2]
[392873645,1762099834323,-150.0,0.00014687,2]
[392873646,1762099834332,-150.0,0.00014687,2]
[392873647,1762099834341,-150.0,0.00014687,2]
[392873648,1762099834351,-150.0,0.00014687,2]
[392873649,1762099834360,-351.0,0.00014687,2]
[392873650,1762099834369,-150.0,0.00014698,2]
[392873651,1762099834378,-176.74,0.000147,2]
[392873652,1762099834388,-548.74,0.000147,2]
[392873653,1762099834398,-150.0,0.000147,2]
[392873654,1762099834407,-1204.11,0.000147,2]
[392873655,1762099834416,-339.75,0.000147,2]
[392873656,1762099834425,-150.0,0.000147,2]
[392873658,1762099834435,-301.72,0.000147,2]
[392873659,1762099834444,-476.65,0.000147,2]
[392873660,1762099834453,-150.0,0.000147,2]
[392873661,1762099834462,-415.37,0.000147,2]
[392873662,1762099834472,-697.96,0.000147,2]
[392873663,1762099834481,-548.81,0.000147,2]
[392873664,1762099834490,-176.74,0.000147,2]
[392873665,1762099834500,-1204.11,0.000147,2]
[392873666,1762099834510,-150.0,0.000147,2]
[392873667,1762099834520,-150.0,0.000147,2]
[392873668,1762099834529,-168.53,0.000147,2]
[392873669,1762099834538,-960.64,0.000147,2]
[392873670,1762099834547,-302.52,0.000147,2]
[392873671,1762099834556,-300.0,0.000147,2]
[392873672,1762099834565,-150.66,0.000147,2]
[392873673,1762099834574,-150.0,0.000147,2]
[392873674,1762099834583,-838.32,0.000147,2]
[392873675,1762099834593,-1036.32,0.000147,2]
[392873676,1762099834602,-168.88,0.000147,2]
[392873677,1762099834612,-829.43,0.000147,2]
[392873678,1762099834621,-697.96,0.000147,2]
[392873679,1762099834630,-548.81,0.000147,2]
[392873680,1762099834640,-150.5,0.000147,2]
[392873681,1762099834649,-353.44,0.000147,2]
[392873682,1762099834659,-548.81,0.000147,2]
[392873683,1762099834668,-150.0,0.000147,2]
[392873684,1762099834678,-415.29,0.000147,2]
[392873685,1762099834687,-337.33,0.000147,2]
[392873686,1762099834696,-150.0,0.000147,2]
[392873687,1762099834705,-697.96,0.000147,2]
[392873688,1762099834713,-1080.72,0.000147,2]
[392873689,1762099834722,-337.76,0.000147,2]
[392873690,1762099834731,-415.29,0.000147,2]
[392873691,1762099834741,-697.96,0.000147,2]
[392873692,1762099834750,-331.59,0.000147,2]
[392873693,1762099834761,-548.74,0.000147,2]
[392873694,1762099834772,-548.74,0.000147,2]
[392873695,1762099834781,-415.37,0.000147,2]
[392873696,1762099834790,-697.96,0.000147,2]
[392873697,1762099834799,-168.88,0.000147,2]
[392873698,1762099834809,-150.0,0.00014709,2]
[392873699,1762099834818,-181.4145557,0.00014709,2]
[392873700,1762099834827,-150.0,0.00014717,2]
[392873701,1762099834837,-150.0,0.00014719,2]
[392873702,1762099834846,-150.0,0.0001472,2]
[392873703,1762099834856,-150.0,0.00014729,2]
[392873704,1762099834865,-150.0,0.00014737,2]
[392873705,1762099834874,-1000.0,0.00014744,2]
[392873706,1762099834884,-166.66,0.00014744,2]
[392873707,1762099834894,-150.0,0.00014747,2]
[392873708,1762099834903,-150.0,0.0001475,2]
[392873709,1762099834913,-150.0,0.0001475,2]
[392873710,1762099834923,-3690.8348,0.0001475,2]
[392873711,1762099834932,-968.0827,0.0001475,2]
[392873712,1762099834942,-1000.0,0.00014751,2]
[392873713,1762099834951,-305.22,0.00014752,2]
[392873714,1762099834960,-150.0,0.00014753,2]
[392873715,1762099834969,-150.0,0.00014756,2]
[392873716,1762099834979,-941.4181,0.00014759,2]
[392873717,1762099834988,-5141.51855919,0.00014759,2]
[392873718,1762099834998,-150.0,0.00014764,2]
[392873719,1762099835008,-514.84070869,0.00014765,2]
[392873720,1762099835017,-150.0,0.00014772,2]
[392873721,1762099835026,-1073.25,0.00014774,2]
[392873722,1762099835035,-150.0,0.00014776,2]
[392873723,1762099835044,-150.0,0.00014786,2]
[392873724,1762099835053,-1031.0,0.00014797,2]
[392873725,1762099835062,-211.06823477,0.00014799,2]
[392873726,1762099835073,-500.0,0.00014799,2]
[392873727,1762099835083,-500.0,0.00014799,2]
[392873728,1762099835092,-169.85805684,0.00014799,2]
[392873729,1762099835101,-500.0,0.00014799,2]
[392873730,1762099835111,-437.7,0.00014799,2]
[392873731,1762099835121,-500.0,0.00014799,2]
[392873732,1762099835130,-500.0,0.00014799,2]
[392873733,1762099835140,-251.21260827,0.00014799,2]
[392873734,1762099835152,-500.0,0.00014799,2]
[392873735,1762099835161,-500.0,0.00014799,2]
[392873736,1762099835170,-500.0,0.00014799,2]
[392873737,1762099835179,-500.0,0.00014799,2]
[392873738,1762099835188,-500.0,0.00014799,2]
[392873739,1762099835197,-500.0,0.00014799,2]
[392873740,1762099835206,-500.0,0.00014799,2]
[392873741,1762099835216,-586.75547132,0.00014799,2]
[392873742,1762099835225,-500.0,0.00014799,2]
[392873743,1762099835235,-500.0,0.00014799,2]
[392873744,1762099835244,-500.0,0.00014799,2]
[392873745,1762099835254,-500.0,0.00014799,2]
[392873746,1762099835264,-500.0,0.00014799,2]
[392873747,1762099835273,-613.14820306,0.00014799,2]
[392873748,1762099835282,-500.0,0.00014799,2]
[392873749,1762099835291,-500.0,0.00014799,2]
[392873750,1762099835300,-500.0,0.00014799,2]
[392873751,1762099835309,-500.0,0.00014799,2]
[392873752,1762099835319,-500.0,0.00014799,2]
[392873753,1762099835328,-500.0,0.00014799,2]
[392873754,1762099835337,-500.0,0.00014799,2]
[392873755,1762099835347,-500.0,0.000148,2]
[392873756,1762099835356,-176.74,0.000148,2]
[392873757,1762099835365,-150.0,0.000148,2]
[392873758,1762099835374,-548.74,0.000148,2]
[392873759,1762099835383,-1248.68,0.000148,2]
[392873760,1762099835393,-303.42,0.000148,2]
[392873761,1762099835404,-476.65,0.000148,2]
[392873762,1762099835415,-697.96,0.000148,2]
[392873763,1762099835424,-172.83,0.000148,2]
[392873764,1762099835434,-414.24,0.000148,2]
[392873765,1762099835444,-168.88,0.000148,2]
[392873766,1762099835455,-555.02,0.000148,2]
[392873767,1762099835464,-168.88,0.000148,2]
[392873768,1762099835474,-421.71,0.000148,2]
[392873769,1762099835484,-697.96,0.000148,2]
[392873770,1762099835493,-548.74,0.000148,2]
[392873771,1762099835503,-168.91,0.000148,2]
[392873772,1762099835512,-697.96,0.000148,2]
[392873773,1762099835522,-830.01,0.000148,2]
[392873774,1762099835533,-150.0,0.000148,2]
[392873775,1762099835542,-150.0,0.00014806,2]
[392873776,1762099835551,-1000.0,0.00014811,2]
[392873777,1762099835561,-150.0,0.00014813,2]
[392873778,1762099835570,-150.0,0.0001482,2]
[392873779,1762099835580,-150.0,0.0001482,2]
[392873780,1762099835592,-150.0,0.0001482,2]
[392873781,1762099835602,-150.0,0.00014826,2]
[392873782,1762099835611,-150.0,0.00014829,2]
[392873783,1762099835621,-150.0,0.00014829,2]
[392873784,1762099835631,-494.91,0.00014834,2]
[392873785,1762099835641,-150.0,0.00014836,2]
[392873786,1762099835650,-150.0,0.00014836,2]
[392873787,1762099835660,-150.0,0.00014852,2]
[392873788,1762099835670,-150.0,0.00014853,2]
[392873789,1762099835679,-101550.00426614,0.00014857,2]
[392873790,1762099835689,-319.22742342,0.00014859,2]
[392873791,1762099835698,-239.77175209,0.00014859,2]
[392873792,1762099835707,-1000.0,0.00014863,2]
[392873793,1762099835717,-150.0,0.00014866,2]
[392873794,1762099835727,-337.76,0.00014868,2]
[392873795,1762099835736,-150.0,0.00014871,2]
[392873796,1762099835746,-500.0,0.00014873,2]
[392873797,1762099835756,-500.0,0.00014873,2]
[392873798,1762099835765,-500.0,0.00014873,2]
[392873799,1762099835775,-500.0,0.00014873,2]
[392873800,1762099835785,-500.0,0.00014873,2]
[392873801,1762099835794,-150.0,0.00014875,2]
[392873802,1762099835803,-351.0,0.00014877,2]
[392873803,1762099835813,-150.0,0.00014879,2]
[392873804,1762099835824,-150.0,0.00014886,2]
[392873805,1762099835834,-150.0,0.00014896,2]
[392873806,1762099835844,-607.0,0.00014898,2]
[392873807,1762099835854,-573.0,0.00014898,2]
[392873808,1762099835863,-820.0,0.00014898,2]
[392873809,1762099835873,-500.0,0.00014899,2]
[392873810,1762099835883,-500.0,0.00014899,2]
[392873811,1762099835892,-500.0,0.00014899,2]
[392873812,1762099835907,-500.0,0.00014899,2]
[392873813,1762099835917,-1000.0,0.00014899,2]
[392873814,1762099835927,-234.3871,0.000149,2]
[392873815,1762099835936,-6224.6683,0.000149,2]
[392873816,1762099835946,-1000.0,0.000149,2]
[392873817,1762099835955,-170.13293127,0.000149,2]
[392873818,1762099835965,-3741.7942,0.000149,2]
[392873819,1762099835975,-168.91,0.000149,2]
[392873820,1762099835988,-548.74,0.000149,2]
[392873821,1762099835998,-415.37,0.000149,2]
[392873822,1762099836009,-697.96,0.000149,2]
[392873823,1762099836018,-1097.31,0.000149,2]
[392873824,1762099836028,-168.88,0.000149,2]
[392873825,1762099836038,-706.13,0.000149,2]
[392873826,1762099836048,-415.29,0.000149,2]
[392873827,1762099836058,-213.10724925,0.000149,2]
[392873828,1762099836070,-741.55546388,0.000149,2]
[392873829,1762099836080,-150.0,0.00014907,2]
[392873830,1762099836090,-150.0,0.00014907,2]
[392873831,1762099836100,-1000.0,0.00014912,2]
[392873832,1762099836110,-150.0,0.0001492,2]
[392873833,1762099836120,-150.0,0.00014926,2]
[392873834,1762099836130,-150.0,0.00014929,2]
[392873835,1762099836139,-1000.0,0.00014929,2]
[392873836,1762099836150,-150.0,0.00014931,2]
[392873837,1762099836160,-150.0,0.00014933,2]
[392873838,1762099836170,-3420.0,0.0001495,2]
[392873839,1762099836183,-263.513,0.0001495,2]
[392873840,1762099836193,-379.0815192,0.0001495,2]
[392873841,1762099836210,-397.06446849,0.0001495,2]
[392873850,1762099837915,-775.33215736,0.000146,2]
[392873851,1762099837926,-191.96664317,0.000146,2]
[392873852,1762099837935,-600.0,0.00014698,2]
[392873853,1762099837946,-359.1291185,0.00014759,2]
[392873854,1762099837955,-500.0,0.00014759,2]
[392873855,1762099837964,-500.0,0.00014759,2]
[392873856,1762099837974,-500.0,0.00014759,2]
[392873857,1762099837984,-303.78267452,0.00014759,2]
[392873858,1762099838023,-196.21732548,0.00014759,2]
[392873859,1762099838034,-500.0,0.00014759,2]
[392873860,1762099838045,-500.0,0.00014759,2]
[392873861,1762099838321,-500.0,0.00014759,2]
[392873862,1762099838344,-500.0,0.00014759,2]
[392873863,1762099838355,-156.9023399,0.00014895,2]
[392873864,1762099838365,-1204.1992976,0.0001495,2]
[392873865,1762099838395,-544.38507453,0.00014759,2]
[392873866,1762099838405,-3431.75660876,0.0001495,2]
[392873867,1762099838418,-1240.89810595,0.0001495,2]
[392873869,1762099838428,-4664.322,0.0001495,2]
[392873871,1762099838438,-2140.0,0.0001495,2]
[392873873,1762099838448,-1187.0,0.0001495,2]
[392873875,1762099838459,-150.0,0.00014953,2]
[392873877,1762099838470,-1031.0,0.00014954,2]
[392873879,1762099838480,-477.45087779,0.00014954,2]
[392873881,1762099838490,-150.0,0.00014956,2]
[392873884,1762099838500,-626.657,0.00014957,2]
[392873885,1762099838512,-179.84,0.00014961,2]
[392873887,1762099838522,-500.0,0.00014973,2]
[392873889,1762099838531,-500.0,0.00014973,2]
[392873892,1762099838542,-500.0,0.00014973,2]
[392873894,1762099838553,-500.0,0.00014973,2]
[392873896,1762099838563,-649.8119851,0.00014973,2]
[392873898,1762099838572,-500.0,0.00014973,2]
[392873899,1762099838582,-500.0,0.00014973,2]
[392873901,1762099838593,-511.09832858,0.00014973,2]
[392873903,1762099838602,-500.0,0.00014973,2]
[392873905,1762099838612,-500.0,0.00014973,2]
[392873907,1762099838621,-500.0,0.00014973,2]
[392873909,1762099838631,-365.24305838,0.00014973,2]
[392873912,1762099838641,-351.0,0.00014981,2]
[392873914,1762099838651,-150.0,0.00014986,2]
[392873916,1762099838660,-181.18710761,0.00014986,2]
[392873918,1762099838670,-201.58099052,0.00014986,2]
[392873919,1762099838680,-150.0,0.00014986,2]
[392873921,1762099838690,-150.00000001,0.00014986,2]
[392873924,1762099838699,-150.0,0.00014986,2]
[392873925,1762099838709,-168.57676944,0.00014986,2]
[392873927,1762099838718,-150.0,0.00014986,2]
[392873929,1762099838728,-155.2823919,0.00014986,2]
[392873931,1762099838738,-150.0,0.00014986,2]
[392873933,1762099838748,-150.0,0.00014986,2]
[392873935,1762099838760,-165.8752723,0.00014986,2]
[392873938,1762099838770,-164.37141159,0.00014986,2]
[392873940,1762099838781,-150.00000001,0.00014986,2]
[392873942,1762099838790,-150.0,0.00014986,2]
[392873944,1762099838801,-164.50739344,0.00014986,2]
[392873945,1762099838810,-150.0,0.00014986,2]
[392873947,1762099838820,-196.82748984,0.0001499,2]
[392873949,1762099838830,-10544.26855247,0.00014995,2]
[392873952,1762099838842,-17214.26482845,0.00014995,2]
[392873954,1762099838852,-1000.0,0.00014995,2]
[392873956,1762099838862,-1000.0,0.00014998,2]
[392873958,1762099838872,-351.0,0.00014999,2]
[392873959,1762099838882,-500.0,0.00014999,2]
[392873961,1762099838892,-298.574218,0.00014999,2]
[392873963,1762099838903,-511.1928987,0.00014999,2]
[392873965,1762099838914,-150.0,0.00014999,2]
[392873967,1762099838924,-150.0,0.00014999,2]
[392873969,1762099838934,-195.19136667,0.00014999,2]
[392873971,1762099838945,-1000.0,0.00014999,2]
[392873973,1762099838955,-1149.33819149,0.00014999,2]
[392873975,1762099838967,-150.0,0.00014999,2]
[392873977,1762099838977,-61.19017773,0.00014999,2]
[392874002,1762099839488,-438.80982227,0.00014999,2]
[392874003,1762099839499,-546.0,0.00014999,2]
[392874004,1762099839509,-150.0,0.00014999,2]
[392874005,1762099839520,-150.0,0.00014999,2]
[392874006,1762099839530,-150.0,0.00014999,2]
[392874007,1762099839540,-150.0,0.00014999,2]
[392874008,1762099839550,-150.0,0.00014999,2]
[392874009,1762099839561,-150.0,0.00014999,2]
[392874010,1762099839571,-666.0,0.00014999,2]
[392874011,1762099839582,-699.0,0.00015,2]
[392874012,1762099839593,-4770.46797992,0.00015,2]
[392874013,1762099839606,-269.54224117,0.00015,2]
[392874014,1762099839618,-62956.18950594,0.00015,2]
[392874015,1762099839630,-2056.80705668,0.00015,2]
[392874016,1762099839667,-500.0,0.00014759,2]
[392874017,1762099839677,-500.0,0.00014759,2]
[392874018,1762099839688,-124.60250951,0.00015,2]
[392874019,1762099839700,-5001.11572416,0.00015,2]
[392874021,1762099840438,250.0,0.00013973,2]
[392874022,1762099840487,-500.0,0.00014759,2]
[392874023,1762099840498,-500.0,0.00014759,2]
[392874024,1762099840510,-500.0,0.00014759,2]
[392874025,1762099840520,-500.0,0.00014759,2]
[392874026,1762099840531,-500.0,0.00014759,2]
[392874027,1762099840541,-500.0,0.00014759,2]
[392874028,1762099840552,-500.0,0.00014759,2]
[392874029,1762099840562,-500.0,0.00014759,2]
[392874030,1762099840572,-500.0,0.00014759,2]
[392874031,1762099840582,-500.0,0.00014759,2]
[392874032,1762099840593,-500.0,0.00014759,2]
[392874033,1762099840603,-500.0,0.00014759,2]
[392874034,1762099840614,-500.0,0.00014759,2]
[392874035,1762099840624,-500.0,0.00014759,2]
[392874036,1762099840634,-500.0,0.00014759,2]
[392874037,1762099840645,-500.0,0.00014759,2]
[392874038,1762099840656,-500.0,0.00014759,2]
[392874039,1762099840666,-500.0,0.00014759,2]
[392874040,1762099840676,-500.0,0.00014759,2]
[392874041,1762099840686,-500.0,0.00014759,2]
[392874042,1762099840696,-500.0,0.00014759,2]
[392874043,1762099840706,-151.0,0.00014973,2]
[392874044,1762099840716,-516.88810491,0.00014973,2]
[392874045,1762099840726,-426695.43641094,0.00015,2]
[392874046,1762099840737,-129459.33968204,0.00015,2]
[392874047,1762099840767,-262014.63674992,0.00015,2]
[392874048,1762099840779,-897.93527462,0.00015,2]
[392874049,1762099840790,-10201.67088374,0.00015,2]
[392874050,1762099841247,-1.6e-07,0.00015,2]
[392874071,1762099843289,-548.74,0.000147,2]
[392874073,1762099843300,-10271.49953236,0.00015,2]
[392874077,1762099843398,-578.34,0.00015,2]
[392874078,1762099843669,-347.65681638,0.00015,2]
[392874079,1762099843682,-329.8,0.00015,2]
[392874080,1762099843693,-11235.0,0.00015,2]
[392874081,1762099843705,-22215.13499065,0.00015,2]
[392874097,1762099846114,-903.53284332,0.00014745,2]
[392874098,1762099846128,-1763.68,0.00014745,2]